Workbook

Sheet MSU
B1: Oskari Kleemola | E1: 26.3.2004 Ulvila
B2: SUPERPESIS | E2: Runkosarja | I2: Kärkilyönnit (KL), pesänvälit | P2: Runkosarja TOP-30 | U2: Ylempi loppusarja | AB2: Ylempi loppusarja TOP-10 | AG2: Play off, voitot, voittoprosentti | AL2: Arvo-ottelut | AO2: Mitalit
B3: Vuosi | C3: Sija | D3: Seura | E3: OTT | F3: KUN | G3: LÖI | H3: TOI | I3: KL | J3: 0 > 1 | K3: 1 > 2 | L3: 2 > 3 | M3: 3 > k | N3: KL-% | P3: LÖI | Q3: TOI | R3: L+T | S3: KL | U3: OTT | V3: KUN | W3: LÖI | X3: TOI | Y3: KL | Z3: KL-% | AB3: LÖI | AC3: TOI | AD3: L+T | AE3: KL | AG3: Puolivälierät | AH3: Välierät | AI3: Pronssi | AJ3: Finaalit | AL3: IL | AM3: LL | AN3: hSM | AO3: K | AP3: H | AQ3: P
B4: 2021 | C4: 8. | D4: PomPy | F4: suomensarja
B5: 2022 | C5: 8. | D5: PomPy | F5: suomensarja
B6: 2022 | C6: 13. | D6: KaMa | E6: 1 | F6: 0 | G6: 0 | H6: 1 | I6: 1 | J6: 1 | K6: 0 | L6: 0 | M6: 0 | N6: 33.3 % | O6: 3
B7: 2023 | C7: 8. | D7: PomPy | F7: suomensarja
B8: Yhteensä | E8: =SUM(E4:E7) -> 1 | F8: 0 | G8: 0 | H8: 1 | I8: 1 | J8: 1 | K8: 0 | L8: 0 | M8: 0 | N8: =PRODUCT(I8/O8) -> 33.3 % | O8: =SUM(O3:O7) -> 3 | P8: 0-0-0 | Q8: 0-0-0 | R8: 0-0-0 | S8: 0-0-0 | U8: =SUM(U7:U7) -> 0 | V8: =SUM(V7:V7) -> 0 | W8: =SUM(W7:W7) -> 0 | X8: =SUM(X7:X7) -> 0 | Y8: =SUM(Y7:Y7) -> 0 | Z8: =PRODUCT(N14) -> 0.0 % | AB8: 0-0-0 | AC8: 0-0-0 | AD8: 0-0-0 | AE8: 0-0-0 | AG8: 0/0 | AH8: 0/0 | AI8: 0/0 | AJ8: 0/0 | AL8: =SUM(AL4:AL7) -> 0 | AM8: 0 | AN8: 0 | AO8: 0 | AP8: 0 | AQ8: 0
AG9: 0.0 % | AH9: 0.0 % | AI9: 0.0 % | AJ9: 0.0 %
B10: Pesispörssi | D10: =SUM(F8:H8)+((I8-F8-G8)/3)+(E8/3)+(AL8*25)+(AM8*25)+(AN8*10)+(AO8*25)+(AP8*20)+(AQ8*15) -> 1.7
B12: URA SUPERISSA | E12: OTT | F12: KUN | G12: LÖI | H12: TOI | I12: KL | K12: ka/L | L12: ka/T | M12: ka/KL | N12: KL-% | P12: ENSIMMÄISET RUNKOSARJASSA | AG12: ENSIMMÄISET PUDOTUSPELEISSÄ | AL12: YLEISÖ
B13: Runkosarja | E13: =PRODUCT(E8) -> 1 | F13: =PRODUCT(F8) -> 0 | G13: =PRODUCT(G8) -> 0 | H13: =PRODUCT(H8) -> 1 | I13: =PRODUCT(I8) -> 1 | K13: =PRODUCT((F13+G13)/E13) -> 0.00 | L13: =PRODUCT(H13/E13) -> 1.00 | M13: =PRODUCT(I13/E13) -> 1.00 | N13: =PRODUCT(N8) -> 33.3 % | O13: =PRODUCT(O8) -> 3 | P13: Ottelu | R13: 31.07. 2022 KaMa - Tahko 0-2 (0-6, 1-2) | AB13: 1. ottelu | AC13: 18 v 4 kk 5 pv | AG13: Ottelu
B14: Ylempi loppusarja | P14: Lyöty | AG14: Lyöty
B15: Alempi loppusarja | E15: 3 | F15: 0 | G15: 0 | H15: 3 | I15: 14 | K15: 0.08 | L15: 0.67 | M15: 3.42 | N15: =PRODUCT(I15/O15) -> 77.8 % | O15: 18 | P15: Tuotu | R15: 31.07. 2022 KaMa - Tahko 0-2 (0-6, 1-2) | AB15: 1. ottelu | AC15: 18 v 4 kk 5 pv | AG15: Tuotu
B16: KAIKKI | E16: =SUM(E13:E15) -> 4 | F16: =SUM(F13:F15) -> 0 | G16: =SUM(G13:G15) -> 0 | H16: =SUM(H13:H15) -> 4 | I16: =SUM(I13:I15) -> 15 | K16: =PRODUCT((F16+G16)/E16) -> 0.00 | L16: =PRODUCT(H16/E16) -> 1.00 | M16: =PRODUCT(I16/E16) -> 3.75 | N16: =PRODUCT(I16/O16) -> 71.4 % | O16: =SUM(O13:O15) -> 21 | P16: Kunnari | AG16: Kunnari
O17: =SUM(O14:O16) -> 39
B18: Seurat | D18: UPV = Ulvilan Pesä-Veikot (1957), kasvattajaseura
D19: PomPy = Pomarkun Pyry (1945)
D20: KaMa = Kankaanpään Maila (1958)

Sheet MSS
B1: Oskari Kleemola | E1: 26.3.2004 Ulvila
B2: YKKÖSPESIS | E2: Runkosarja | L2: Runkosarja TOP-10 | Q2: Jatkosarjat | X2: SUOMENSARJA | AA2: Runkosarja | AH2: Runkosarja TOP-10 | AM2: Jatkosarjat
B3: Vuosi | C3: Sija | D3: Seura | E3: OTT | F3: KUN | G3: LÖI | H3: TOI | I3: KL | J3: KL-% | L3: LÖI | M3: TOI | N3: L+T | O3: KL | Q3: OTT | R3: KUN | S3: LÖI | T3: TOI | U3: KL | V3: KL-% | X3: Vuosi | Y3: Sija | Z3: Seura | AA3: OTT | AB3: KUN | AC3: LÖI | AD3: TOI | AE3: KL | AF3: KL-% | AH3: LÖI | AI3: TOI | AJ3: L+T | AK3: KL | AM3: OTT | AN3: KUN | AO3: LÖI | AP3: TOI | AQ3: KL | AR3: KL-%
X4: 2021 | Y4: 8. | Z4: PomPy | AA4: 4 | AB4: 0 | AC4: 0 | AD4: 3 | AE4: 17 | AF4: 63.0 % | AG4: 27
X5: 2022 | Y5: 8. | Z5: PomPy | AA5: 10 | AB5: 0 | AC5: 0 | AD5: 10 | AE5: 34 | AF5: 54.0 % | AG5: 63
X6: 2023 | Y6: 8. | Z6: PomPy | AA6: 9 | AB6: 0 | AC6: 1 | AD6: 5 | AE6: 32 | AF6: 59.3 % | AG6: 54
B7: YHTEENSÄ | E7: =SUM(E4:E6) -> 0 | F7: =SUM(F4:F6) -> 0 | G7: =SUM(G4:G6) -> 0 | H7: =SUM(H4:H6) -> 0 | I7: =SUM(I4:I6) -> 0 | J7: 0.0 % | K7: =SUM(K4:K6) -> 0 | Q7: =SUM(Q4:Q6) -> 0 | R7: =SUM(R4:R6) -> 0 | S7: =SUM(S4:S6) -> 0 | T7: =SUM(T4:T6) -> 0 | U7: =SUM(U4:U6) -> 0 | V7: 0.0 % | W7: =SUM(W4:W6) -> 0 | X7: YHTEENSÄ | AA7: =SUM(AA4:AA6) -> 23 | AB7: =SUM(AB4:AB6) -> 0 | AC7: =SUM(AC4:AC6) -> 1 | AD7: =SUM(AD4:AD6) -> 18 | AE7: =SUM(AE4:AE6) -> 83 | AF7: =PRODUCT(AE7/AG7) -> 57.6 % | AG7: =SUM(AG4:AG6) -> 144 | AM7: =SUM(AM4:AM6) -> 0 | AN7: =SUM(AN4:AN6) -> 0 | AO7: =SUM(AO4:AO6) -> 0 | AP7: =SUM(AP4:AP6) -> 0 | AQ7: =SUM(AQ4:AQ6) -> 0 | AR7: 0.0 % | AS7: =SUM(AS4:AS6) -> 0
B9: KAIKKI OTTELUT | E9: OTT | F9: KUN | G9: LÖI | H9: TOI | I9: KL | J9: KL-% | L9: ka/L | M9: ka/T | N9: ka/l+t | O9: ka/kl | R9: Seurat | T9: UPV = Ulvilan Pesä-Veikot (1957), kasvattajaseura
B10: SUPERPESIS | E10: 4 | F10: 0 | G10: 0 | H10: 4 | I10: 15 | J10: 71.4 % | K10: =PRODUCT(I10/J10) -> 21.00840336 | L10: =PRODUCT((F10+G10)/E10) -> 0.00 | M10: =PRODUCT(H10/E10) -> 1.00 | N10: =PRODUCT((F10+G10+H10)/E10) -> 1.00 | O10: =PRODUCT(I10/E10) -> 3.75 | T10: PomPy = Pomarkun Pyry (1945)
B11: YKKÖSPESIS | E11: =PRODUCT(E7+Q7) -> 0 | F11: =PRODUCT(F7+R7) -> 0 | G11: =PRODUCT(G7+S7) -> 0 | H11: =PRODUCT(H7+T7) -> 0 | I11: =PRODUCT(I7+U7) -> 0 | J11: 0.0 % | K11: =PRODUCT(K7+W7) -> 0 | L11: 0.00 | M11: 0.00 | N11: 0.00 | O11: 0.00 | T11: KaMa = Kankaanpään Maila (1958)
B12: SUOMENSARJA | E12: =PRODUCT(AA7+AM7) -> 23 | F12: =PRODUCT(AB7+AN7) -> 0 | G12: =PRODUCT(AC7+AO7) -> 1 | H12: =PRODUCT(AD7+AP7) -> 18 | I12: =PRODUCT(AE7+AQ7) -> 83 | J12: =PRODUCT(I12/K12) -> 57.6 % | K12: =PRODUCT(AG7+AS7) -> 144 | L12: =PRODUCT((F12+G12)/E12) -> 0.04 | M12: =PRODUCT(H12/E12) -> 0.78 | N12: =PRODUCT((F12+G12+H12)/E12) -> 0.83 | O12: =PRODUCT(I12/E12) -> 3.61
B13: YHTEENSÄ | E13: =SUM(E10:E12) -> 27 | F13: =SUM(F10:F12) -> 0 | G13: 1 | H13: 22 | I13: 98 | J13: =PRODUCT(I13/K13) -> 59.4 % | K13: =SUM(K10:K12) -> 165.0084034 | L13: =PRODUCT((F13+G13)/E13) -> 0.04 | M13: =PRODUCT(H13/E13) -> 0.81 | N13: =PRODUCT((F13+G13+H13)/E13) -> 0.85 | O13: =PRODUCT(I13/E13) -> 3.63

Sheet Kärkilyönnit
B1: KÄRKILYÖNNIT RUNKOSARJASSA | V1: VUOSITTAISET SIJOITUKSET TOP - 30
G2: 0 > 1 | J2: 1 > 2 | M2: 2 > 3 | P2: 3 > k | S2: Yhteensä
B3: Vuosi | C3: Sija | D3: Seura | E3: OTT | F3: KL | G3: YHT | H3: % | I3: KL | J3: YHT | K3: % | L3: KL | M3: YHT | N3: % | O3: KL | P3: YHT | Q3: % | R3: KL | S3: YHT | T3: % | V3: Vuosi | W3: Sija | X3: Seura | Y3: 0 > 1 | Z3: 1 > 2 | AA3: 2 > 3 | AB3: 3 > k | AC3: KL
B4: 2022 | C4: 13. | D4: KaMa | E4: 1 | F4: 1 | G4: 1 | H4: 100.0 % | I4: 0 | J4: 2 | K4: 0.0 % | L4: 0 | M4: 0 | N4: 0.0 % | O4: 0 | P4: 0 | Q4: 0.0 % | R4: 1 | S4: 3 | T4: 33.3 % | V4: 2022 | W4: 13. | X4: KaMa
B6: Yhteensä | E6: =SUM(E4:E5) -> 1 | F6: =SUM(F4:F5) -> 1 | G6: =SUM(G4:G5) -> 1 | H6: =PRODUCT(F6/G6) -> 100.0 % | I6: =SUM(I4:I5) -> 0 | J6: =SUM(J4:J5) -> 2 | K6: =PRODUCT(I6/J6) -> 0.0 % | L6: =SUM(L4:L5) -> 0 | M6: =SUM(M4:M5) -> 0 | N6: 0.0 % | O6: =SUM(O4:O5) -> 0 | P6: =SUM(P4:P5) -> 0 | Q6: 0.0 % | R6: =SUM(R4:R5) -> 1 | S6: =SUM(S4:S5) -> 3 | T6: =PRODUCT(R6/S6) -> 33.3 %
B8: KÄRKILYÖNNIT YLEMMISSÄ PUDOTUSPELEISSÄ | V8: VUOSITTAISET SIJOITUKSET TOP - 30
G9: 0 > 1 | J9: 1 > 2 | M9: 2 > 3 | P9: 3 > k | S9: Yhteensä
B10: Vuosi | C10: Sija | D10: Seura | E10: OTT | F10: KL | G10: YHT | H10: % | I10: KL | J10: YHT | K10: % | L10: KL | M10: YHT | N10: % | O10: KL | P10: YHT | Q10: % | R10: KL | S10: YHT | T10: % | V10: Vuosi | W10: Sija | X10: Seura | Y10: 0 > 1 | Z10: 1 > 2 | AA10: 2 > 3 | AB10: 3 > k | AC10: KL
B11: 2022 | C11: 13. | D11: KaMa
B13: Yhteensä | E13: =SUM(E9:E12) -> 0 | F13: =SUM(F11:F12) -> 0 | G13: =SUM(G11:G12) -> 0 | H13: 0.0 % | I13: =SUM(I11:I12) -> 0 | J13: =SUM(J11:J12) -> 0 | K13: 0.0 % | L13: =SUM(L11:L12) -> 0 | M13: =SUM(M11:M12) -> 0 | N13: 0.0 % | O13: =SUM(O11:O12) -> 0 | P13: =SUM(P11:P12) -> 0 | Q13: 0.0 % | R13: =SUM(R11:R12) -> 0 | S13: =SUM(S11:S12) -> 0 | T13: 0.0 %
B15: KÄRKILYÖNNIT
G16: 0 > 1 | J16: 1 > 2 | M16: 2 > 3 | P16: 3 > k | S16: Yhteensä
E17: OTT | F17: KL | G17: YHT | H17: % | I17: KL | J17: YHT | K17: % | L17: KL | M17: YHT | N17: % | O17: KL | P17: YHT | Q17: % | R17: KL | S17: YHT | T17: %
B18: RUNKOSARJA | E18: =PRODUCT(E6) -> 1 | F18: 1 | G18: 1 | H18: 100.0 % | I18: 0 | J18: 2 | K18: 0.0 % | L18: 0 | M18: 0 | N18: 0.0 % | O18: 0 | P18: 0 | Q18: 0.0 % | R18: 1 | S18: 3 | T18: 33.3 %
B19: PLAY OFF | E19: =PRODUCT(E13) -> 0 | F19: =PRODUCT(F13) -> 0 | G19: 0 | H19: 0.0 % | I19: 0 | J19: 0 | K19: 0.0 % | L19: 0 | M19: 0 | N19: 0.0 % | O19: 0 | P19: 0 | Q19: 0.0 % | R19: 0 | S19: 0 | T19: 0.0 %
